fUSD/lending_fUSD_20250105
["ID","MTS","AMOUNT","RATE_DAILY","PERIOD"]
[347801165,1736115046565,-500.0,0.00011367,2]
[347801166,1736115046575,-500.0,0.00011367,2]
[347801167,1736115046584,-500.0,0.00011367,2]
[347801168,1736115046594,-500.0,0.00011367,2]
[347801169,1736115046603,-640.26,0.00011367,2]
[347801170,1736115046612,-500.0,0.00011367,2]
[347801171,1736115046624,-500.0,0.00011367,2]
[347801172,1736115046634,-576.63,0.00011367,2]
[347801173,1736115046644,-500.0,0.00011367,2]
[347801174,1736115046653,-500.0,0.00011367,2]
[347801175,1736115046663,-500.0,0.00011367,2]
[347801176,1736115046672,-500.0,0.00011367,2]
[347801177,1736115046682,-500.0,0.00011367,2]
[347801178,1736115046691,-214.56164646,0.00011367,2]
[347801179,1736115046700,-500.0,0.00011367,2]
[347801180,1736115046709,-500.0,0.00011367,2]
[347801181,1736115046719,-500.0,0.00011367,2]
[347801182,1736115046728,-500.0,0.00011367,2]
[347801183,1736115046737,-500.0,0.00011367,2]
[347801184,1736115046746,-500.0,0.00011367,2]
[347801185,1736115046755,-648.72,0.00011367,2]
[347801186,1736115046764,-500.0,0.00011367,2]
[347801187,1736115046773,-515.41,0.00011367,2]
[347801188,1736115046784,-500.0,0.00011367,2]
[347801189,1736115046793,-500.0,0.00011367,2]
[347801190,1736115046803,-500.0,0.00011367,2]
[347801191,1736115046813,-500.0,0.00011367,2]
[347801192,1736115046822,-500.97,0.00011367,2]
[347801193,1736115046833,-500.0,0.00011367,2]
[347801194,1736115046843,-567.77,0.00011367,2]
[347801195,1736115046852,-500.0,0.00011367,2]
[347801196,1736115046861,-500.0,0.00011367,2]
[347801197,1736115046870,-500.0,0.00011367,2]
[347801198,1736115046879,-500.0,0.00011367,2]
[347801199,1736115046888,-547.99,0.00011367,2]
[347801200,1736115046898,-500.0,0.00011367,2]
[347801201,1736115046907,-500.0,0.00011367,2]
[347801202,1736115046917,-500.0,0.00011367,2]
[347801203,1736115046926,-537.03018582,0.00011367,2]
[347801204,1736115046935,-500.0,0.00011367,2]
[347801205,1736115046944,-500.0,0.00011367,2]
[347801206,1736115046953,-500.0,0.00011367,2]
[347801207,1736115046962,-500.0,0.00011367,2]
[347801208,1736115046971,-150.0,0.00011367,2]
[347801209,1736115046980,-500.0,0.00011367,2]
[347801210,1736115046989,-500.0,0.00011367,2]
[347801211,1736115046998,-500.0,0.00011367,2]
[347801212,1736115047008,-500.0,0.00011367,2]
[347801213,1736115047017,-500.0,0.00011367,2]
[347801214,1736115047028,-500.0,0.00011367,2]
[347801215,1736115047038,-500.0,0.00011367,2]
[347801216,1736115047048,-500.0,0.00011367,2]
[347801217,1736115047058,-500.0,0.00011367,2]
[347801218,1736115047067,-500.0,0.00011367,2]
[347801219,1736115047078,-500.0,0.00011367,2]
[347801220,1736115047088,-500.0,0.00011367,2]
[347801221,1736115047098,-500.0,0.00011367,2]
[347801222,1736115047108,-500.0,0.00011367,2]
[347801223,1736115047117,-500.0,0.00011367,2]
[347801224,1736115047127,-500.0,0.00011367,2]
[347801225,1736115047136,-500.0,0.00011367,2]
[347801226,1736115047145,-500.0,0.00011367,2]
[347801227,1736115047155,-500.0,0.00011367,2]
[347801228,1736115047164,-500.0,0.00011367,2]
[347801229,1736115047173,-500.0,0.00011367,2]
[347801230,1736115047182,-500.0,0.00011367,2]
[347801231,1736115047191,-500.0,0.00011367,2]
[347801232,1736115047201,-500.0,0.00011367,2]
[347801233,1736115047210,-500.0,0.00011367,2]
[347801234,1736115047219,-500.0,0.00011367,2]
[347801235,1736115047229,-500.0,0.00011367,2]
[347801236,1736115047239,-500.0,0.00011367,2]
[347801237,1736115047248,-500.0,0.00011367,2]
[347801238,1736115047257,-500.0,0.00011367,2]
[347801239,1736115047266,-545.72,0.00011367,2]
[347801240,1736115047276,-500.0,0.00011367,2]
[347801241,1736115047285,-500.0,0.00011367,2]
[347801242,1736115047295,-593.06,0.00011367,2]
[347801243,1736115047305,-500.0,0.00011367,2]
[347801244,1736115047315,-500.0,0.00011367,2]
[347801245,1736115047324,-500.0,0.00011367,2]
[347801246,1736115047335,-571.29,0.00011367,2]
[347801247,1736115047345,-500.0,0.00011367,2]
[347801248,1736115047354,-500.0,0.00011367,2]
[347801249,1736115047364,-500.0,0.00011367,2]
[347801250,1736115047373,-500.0,0.00011367,2]
[347801251,1736115047383,-500.0,0.00011367,2]
[347801252,1736115047394,-506.35,0.00011367,2]
[347801253,1736115047406,-500.0,0.00011367,2]
[347801254,1736115047416,-500.0,0.00011367,2]
[347801255,1736115047426,-500.0,0.00011367,2]
[347801256,1736115047437,-504.67,0.00011367,2]
[347801257,1736115047446,-500.0,0.00011367,2]
[347801258,1736115047456,-500.0,0.00011367,2]
[347801259,1736115047466,-500.0,0.00011367,2]
[347801260,1736115047477,-500.0,0.00011367,2]
[347801261,1736115047486,-500.0,0.00011367,2]
[347801262,1736115047495,-460.09,0.00011367,2]
[347801263,1736115047505,-500.0,0.00011367,2]
[347801264,1736115047514,-527.09,0.00011367,2]
[347801265,1736115047523,-198.02505988,0.00011367,2]
[347801266,1736115047549,-301.97494012,0.00011367,2]
[347801267,1736115047559,-500.0,0.00011367,2]
[347801268,1736115047568,-500.0,0.00011367,2]
[347801269,1736115047577,-500.0,0.00011367,2]
[347801270,1736115047586,-500.0,0.00011367,2]
[347801271,1736115047595,-500.0,0.00011367,2]
[347801272,1736115047605,-500.0,0.00011367,2]
[347801273,1736115047616,-500.0,0.00011367,2]
[347801274,1736115047625,-390.74148734,0.00011367,2]
[347801275,1736115047636,-109.25851266,0.00011367,2]
[347801276,1736115047646,-500.0,0.00011367,2]
[347801277,1736115047655,-500.0,0.00011367,2]
[347801278,1736115047665,-500.0,0.00011367,2]
[347801279,1736115047678,-500.0,0.00011367,2]
[347801280,1736115047687,-500.0,0.00011367,2]
[347801281,1736115047696,-500.0,0.00011367,2]
[347801282,1736115047706,-500.0,0.00011367,2]
[347801283,1736115047715,-500.0,0.00011367,2]
[347801284,1736115047725,-500.0,0.00011367,2]
[347801285,1736115047734,-500.0,0.00011367,2]
[347801286,1736115047746,-500.0,0.00011367,2]
[347801287,1736115047756,-160.1,0.00011367,2]
[347801288,1736115047766,-500.0,0.00011367,2]
[347801289,1736115047778,-599.09,0.00011367,2]
[347801290,1736115047790,-500.0,0.00011367,2]
[347801291,1736115047800,-500.0,0.00011367,2]
[347801292,1736115047810,-500.0,0.00011367,2]
[347801293,1736115047820,-500.0,0.00011367,2]
[347801294,1736115047832,-500.0,0.00011367,2]
[347801295,1736115047841,-641.05,0.00011367,2]
[347801296,1736115047851,-500.0,0.00011367,2]
[347801297,1736115047860,-500.0,0.00011367,2]
[347801298,1736115047869,-500.0,0.00011367,2]
[347801299,1736115047880,-500.0,0.00011367,2]
[347801300,1736115047889,-500.0,0.00011367,2]
[347801301,1736115047899,-500.0,0.00011367,2]
[347801302,1736115047910,-468.4,0.00011367,2]
[347801303,1736115047920,-500.0,0.00011367,2]
[347801304,1736115047930,-500.0,0.00011367,2]
[347801305,1736115047939,-500.0,0.00011367,2]
[347801306,1736115047950,-500.0,0.00011367,2]
[347801307,1736115047961,-500.0,0.00011367,2]
[347801308,1736115047971,-500.0,0.00011367,2]
[347801309,1736115047981,-500.0,0.00011367,2]
[347801310,1736115047992,-500.0,0.00011367,2]
[347801311,1736115048002,-500.0,0.00011367,2]
[347801312,1736115048011,-500.0,0.00011367,2]
[347801313,1736115048020,-500.0,0.00011367,2]
[347801314,1736115048029,-500.0,0.00011367,2]
[347801315,1736115048038,-500.0,0.00011367,2]
[347801316,1736115048047,-500.0,0.00011367,2]
[347801317,1736115048057,-578.19,0.00011367,2]
[347801318,1736115048068,-500.0,0.00011367,2]
[347801319,1736115048077,-500.0,0.00011367,2]
[347801320,1736115048086,-500.0,0.00011367,2]
[347801321,1736115048095,-500.0,0.00011367,2]
[347801322,1736115048104,-500.0,0.00011367,2]
[347801323,1736115048113,-500.0,0.00011367,2]
[347801324,1736115048122,-517.19,0.00011367,2]
[347801325,1736115048131,-500.0,0.00011367,2]
[347801326,1736115048140,-500.0,0.00011367,2]
[347801327,1736115048149,-500.0,0.00011367,2]
[347801328,1736115048159,-500.0,0.00011367,2]
[347801329,1736115048169,-500.0,0.00011367,2]
[347801330,1736115048178,-500.0,0.00011367,2]
[347801331,1736115048187,-500.0,0.00011367,2]
[347801332,1736115048197,-500.0,0.00011367,2]
[347801333,1736115048206,-500.0,0.00011367,2]
[347801334,1736115048215,-500.0,0.00011367,2]
[347801335,1736115048225,-500.0,0.00011367,2]
[347801336,1736115048234,-500.0,0.00011367,2]
[347801337,1736115048243,-500.0,0.00011367,2]
[347801338,1736115048253,-500.0,0.00011367,2]
[347801339,1736115048262,-500.0,0.00011367,2]
[347801340,1736115048271,-500.0,0.00011367,2]
[347801341,1736115048280,-500.0,0.00011367,2]
[347801342,1736115048289,-524.8,0.00011367,2]
[347801343,1736115048299,-500.0,0.00011367,2]
[347801344,1736115048308,-500.0,0.00011367,2]
[347801345,1736115048318,-225.99,0.00011367,2]
[347801346,1736115048327,-500.0,0.00011367,2]
[347801347,1736115048336,-500.0,0.00011367,2]
[347801348,1736115048346,-500.0,0.00011367,2]
[347801349,1736115048355,-500.0,0.00011367,2]
[347801350,1736115048364,-500.0,0.00011367,2]
[347801351,1736115048375,-500.0,0.00011367,2]
[347801352,1736115048384,-500.0,0.00011367,2]
[347801353,1736115048398,-500.0,0.00011367,2]
[347801354,1736115048408,-500.0,0.00011367,2]
[347801355,1736115048417,-500.0,0.00011367,2]
[347801356,1736115048427,-525.63,0.00011367,2]
[347801357,1736115048437,-500.0,0.00011367,2]
[347801358,1736115048446,-615.02152828,0.00011367,2]
[347801359,1736115048456,-500.0,0.00011367,2]
[347801360,1736115048465,-337.92241906,0.00011368,2]
[347801361,1736115048685,-1188.50758094,0.00011368,2]
[347801362,1736115048694,-500.0,0.00011368,2]
[347801363,1736115048704,-835.94,0.00011368,2]
[347801364,1736115048713,-888.58,0.00011368,2]
[347801365,1736115048722,-500.0,0.00011368,2]
[347801366,1736115048732,-500.0,0.00011368,2]
[347801367,1736115048741,-570.15,0.00011368,2]
[347801368,1736115048751,-500.0,0.00011368,2]
[347801369,1736115048760,-500.0,0.00011445,2]
[347801370,1736115048769,-500.0,0.00011445,2]
[347801371,1736115048779,-500.0,0.00011445,2]
[347801372,1736115048788,-500.0,0.00011445,2]
[347801373,1736115048798,-500.0,0.00011445,2]
[347801374,1736115048807,-500.0,0.00011445,2]
[347801375,1736115048816,-500.0,0.00011445,2]
[347801376,1736115048826,-755.64,0.00011445,2]
[347801377,1736115048835,-500.0,0.00011445,2]
[347801378,1736115048845,-500.0,0.00011445,2]
[347801379,1736115048854,-500.0,0.00011445,2]
[347801380,1736115048863,-576.9,0.00011445,2]
[347801381,1736115048873,-500.0,0.00011446,2]
[347801382,1736115048882,-573.52,0.00011446,2]
[347801383,1736115048892,-500.0,0.00011446,2]
[347801384,1736115048901,-765.37,0.00011446,2]
[347801385,1736115048911,-637.07,0.00011446,2]
[347801386,1736115048920,-324.64,0.00011479,2]
[347801387,1736115048929,-150.0,0.00011479,2]
[347801388,1736115048939,-826.81,0.00011479,2]
[347801389,1736115048948,-873.58,0.00011479,2]
[347801390,1736115048957,-150.0,0.00011479,2]
[347801391,1736115048967,-150.0,0.00011479,2]
[347801392,1736115048976,-1000.0,0.00011488,2]
[347801393,1736115048986,-2728.47300254,0.00011507,2]
[347801394,1736115048998,-22.52699746,0.00011507,2]
[347801395,1736115049007,-271.0,0.00011507,2]
[347801396,1736115049016,-768.32,0.00011536,2]
[347801397,1736115049025,-232.657188,0.00011536,2]
[347801398,1736115049035,-559.35,0.00011537,2]
[347801399,1736115049044,-216.27087602,0.00011537,2]
[347801459,1736116231819,-979.17,8.219e-05,2]
[347801460,1736116231829,-300.0,9.575e-05,2]
[347801461,1736116231838,-11340.69719082,9.576e-05,2]
[347801462,1736116231850,-370.31153106,9.576e-05,2]
[347801463,1736116231862,-1080.79234568,9.576e-05,2]
[347801464,1736116231873,-1028.79,9.576e-05,2]
[347801465,1736116231885,-833.43893244,9.576e-05,2]
[347801466,1736116231898,-587.31,9.596e-05,2]
[347801467,1736116231907,-298.31,9.603e-05,2]
[347801468,1736116231916,-4974.72962461,9.613e-05,2]
[347801469,1736116231925,-250.0,9.618e-05,2]
[347801470,1736116231935,-12149.16355509,9.622e-05,2]
[347801471,1736116231946,-2653.56644491,9.622e-05,2]
[347801472,1736116231955,-1000.0,9.655e-05,2]
[347801473,1736116231965,-250.0,9.661e-05,2]
[347801474,1736116231975,-176.72,9.738e-05,2]
[347801475,1736116231984,-5205.80521922,9.774e-05,2]
[347801476,1736116231994,-3202.00116266,9.774e-05,2]
[347801477,1736116232005,-345.3348,9.774e-05,2]
[347801478,1736116232030,-931.00001,9.774e-05,2]
[347801479,1736116232041,-792.5651784,9.774e-05,2]
[347801480,1736116232075,-5304.51865436,9.774e-05,2]
[347801481,1736116232085,-200.0,9.774e-05,2]
[347801482,1736116232096,-6118.74440277,9.775e-05,2]
[347801483,1736116232105,-5205.80521922,9.775e-05,2]
[347801484,1736116232115,-200.0,9.776e-05,2]
[347801485,1736116232124,-10575.41980542,9.776e-05,2]
[347801486,1736116232134,-200.0,9.778e-05,2]
[347801487,1736116232143,-2368.82884518,9.78e-05,2]
[347801488,1736116232155,-371.34408648,9.78e-05,2]
[347801489,1736116232169,-3378.57147111,9.78e-05,2]
[347801490,1736116232179,-921.42852889,9.781e-05,2]
[347801493,1736116232200,-4496.1404472,9.781e-05,2]
[347801495,1736116232212,-290.54130537,9.781e-05,2]
[347801497,1736116232223,-410.63412131,9.781e-05,2]
[347801499,1736116232233,-368.62850798,9.781e-05,2]
[347801500,1736116232244,-1754.70019117,9.781e-05,2]
[347801501,1736116232256,-414.7679528,9.781e-05,2]
[347801502,1736116232267,-353.88079999,9.781e-05,2]
[347801523,1736116237768,-6169.2382,9.781e-05,2]
[347801524,1736116237781,-2965.57760806,9.781e-05,2]
[347801525,1736116237792,-434.42209194,9.781e-05,2]
[347801526,1736116237804,-4771.38312728,9.781e-05,2]
[347801527,1736116237814,-4449.46987212,9.781e-05,2]
[347801528,1736116237829,-5205.80521922,9.782e-05,2]
[347801529,1736116237839,-6118.74440277,9.782e-05,2]
[347801530,1736116237848,-4449.46987212,9.783e-05,2]
[347801531,1736116237858,-5205.80521922,9.783e-05,2]
[347801532,1736116237867,-10575.41980542,9.783e-05,2]
[347801533,1736116237877,-200.0,9.784e-05,2]
[347801534,1736116237887,-10575.41980542,9.784e-05,2]
[347801535,1736116237898,-5685.98267643,9.784e-05,2]
[347801536,1736116237910,-1154.21720862,9.784e-05,2]
[347801537,1736116237923,-2026.65877865,9.784e-05,2]
[347801538,1736116237936,-1708.56114172,9.784e-05,2]
[347801539,1736116237947,-4149.18199765,9.786e-05,2]
[347801540,1736116237959,-3600.0,9.786e-05,2]
[347801541,1736116237982,-1241.83745801,9.786e-05,2]
[347801542,1736116237993,-3035.77380434,9.786e-05,2]
[347801543,1736116238003,-1051.36516678,9.786e-05,2]
[347801544,1736116238020,-3398.10470534,9.786e-05,2]
[347801545,1736116238029,-2622.35292108,9.786e-05,2]
[347801546,1736116238041,-3496.39148169,9.786e-05,2]
[347801547,1736116238051,-1303.60851831,9.789e-05,2]
[347801548,1736116238064,-10723.18474169,9.789e-05,2]
[347801549,1736116238075,-200.0,9.789e-05,2]
[347801550,1736116238085,-4449.46987212,9.791e-05,2]
[347801551,1736116238095,-200.0,9.793e-05,2]
[347801552,1736116238106,-4449.46987212,9.794e-05,2]
[347801553,1736116238118,-5205.80521922,9.794e-05,2]
[347801554,1736116238128,-6118.74440277,9.794e-05,2]
[347801555,1736116238138,-10575.41980542,9.794e-05,2]
[347801556,1736116238148,-4449.46987212,9.794e-05,2]
[347801557,1736116238159,-12026.79326,9.798e-05,2]
[347801558,1736116238169,-200.0,9.799e-05,2]
[347801559,1736116238181,-12026.79326,9.799e-05,2]
[347801560,1736116238191,-2176.56957114,9.8e-05,2]
[347801561,1736116238205,-457.49249934,9.8e-05,2]
[347801562,1736116238219,-326.249997,9.8e-05,2]
[347801563,1736116238233,-425.99999,9.8e-05,2]
[347801564,1736116238246,-382.71881423,9.8e-05,2]
[347801565,1736116238259,-1009.5,9.8e-05,2]
[347801566,1736116238302,-7248.26238829,9.8e-05,2]
[347801567,1736116238311,-7145.16,9.858e-05,2]
[347801568,1736116238320,-4859.97566595,9.988e-05,2]
[347801569,1736116238329,-150.0,9.999e-05,2]
[347801570,1736116238338,-166.05,0.0001,2]
[347801571,1736116238347,-180.19654359,0.0001,2]
[347801572,1736116238356,-22516.03641873,0.0001,2]
[347801573,1736116238365,-1318.07143013,0.0001,2]
[347801574,1736116238375,-1487.44,0.0001,2]
[347801575,1736116238384,-1476.91,0.00010002,2]
[347801576,1736116238394,-1318.07143007,0.00010003,2]
[347801577,1736116238403,-1477.46,0.00010004,2]
[347801578,1736116238412,-1500.39,0.00010006,2]
[347801579,1736116238421,-1484.35,0.00010009,2]
[347801580,1736116238430,-1475.12,0.00010018,2]
[347801581,1736116238440,-1479.66,0.00010031,2]
[347801582,1736116238449,-1508.36,0.00010053,2]
[347801583,1736116238458,-1492.82,0.00010089,2]
[347801584,1736116238468,-1318.07143007,0.00010107,2]
[347801585,1736116238477,-848.0,0.00010137,2]
[347801586,1736116238487,-661.78,0.00010167,2]
[347801587,1736116238496,-500.0,0.00010167,2]
[347801588,1736116238506,-500.0,0.00010167,2]
[347801589,1736116238515,-500.0,0.00010167,2]
[347801590,1736116238524,-500.0,0.00010167,2]
[347801591,1736116238533,-500.0,0.00010167,2]
[347801592,1736116238543,-500.0,0.00010167,2]
[347801593,1736116238552,-500.0,0.00010167,2]
[347801594,1736116238561,-500.0,0.00010167,2]
[347801595,1736116238571,-561.96,0.00010167,2]
[347801596,1736116238581,-1535.44,0.00010167,2]
[347801597,1736116238590,-500.0,0.00010167,2]
[347801598,1736116238599,-500.0,0.00010167,2]
[347801599,1736116238608,-805.54,0.00010167,2]
[347801600,1736116238618,-500.0,0.00010167,2]
[347801601,1736116238627,-510.93,0.00010167,2]
[347801602,1736116238637,-500.0,0.00010167,2]
[347801603,1736116238646,-500.0,0.00010167,2]
[347801604,1736116238656,-500.0,0.00010167,2]
[347801605,1736116238665,-1000.0,0.00010167,2]
[347801606,1736116238675,-500.0,0.00010167,2]
[347801607,1736116238684,-500.0,0.00010167,2]
[347801608,1736116238694,-500.0,0.00010167,2]
[347801609,1736116238704,-500.0,0.00010167,2]
[347801610,1736116238713,-1318.07143007,0.0001021,2]
[347801611,1736116238723,-1474.99,0.0001022,2]
[347801612,1736116238732,-1318.07143007,0.00010314,2]
[347801613,1736116238741,-1318.07143007,0.00010417,2]
[347801614,1736116238751,-661.78,0.00010441,2]
[347801615,1736116238760,-500.0,0.00010441,2]
[347801616,1736116238770,-500.0,0.00010441,2]
[347801617,1736116238780,-500.0,0.00010441,2]
[347801618,1736116238789,-500.0,0.00010441,2]
[347801619,1736116238799,-561.96,0.00010441,2]
[347801620,1736116238809,-1535.44,0.00010441,2]
[347801621,1736116238819,-500.0,0.00010441,2]
[347801622,1736116238829,-805.54,0.00010441,2]
[347801623,1736116238838,-500.0,0.00010441,2]
[347801624,1736116238848,-500.0,0.00010441,2]
[347801625,1736116238857,-500.0,0.00010441,2]
[347801626,1736116238867,-1000.0,0.00010441,2]
[347801627,1736116238877,-500.0,0.00010441,2]
[347801628,1736116238887,-500.0,0.00010441,2]
[347801629,1736116238899,-500.0,0.00010441,2]
[347801630,1736116238909,-500.0,0.00010441,2]
[347801631,1736116238918,-979.17,0.00010454,2]
[347801632,1736116238928,-150.0,0.00010455,2]
[347801633,1736116238937,-1318.07143007,0.00010521,2]
[347801634,1736116238946,-420.0,0.00010533,2]
[347801635,1736116238956,-1318.07143007,0.00010624,2]
[347801636,1736116238965,-500.0,0.00010714,2]
[347801637,1736116238975,-500.0,0.00010714,2]
[347801638,1736116238984,-500.0,0.00010714,2]
[347801639,1736116238993,-661.78,0.00010715,2]
[347801640,1736116239003,-429.74199417,0.00010715,2]
[347801641,1736116239012,-346.04659316,0.00010715,2]
[347801642,1736116239022,-500.0,0.00010715,2]
[347801643,1736116239031,-500.0,0.00010715,2]
[347801644,1736116239040,-561.96,0.00010715,2]
[347801645,1736116239050,-1535.44,0.00010715,2]
[347801646,1736116239060,-805.54,0.00010715,2]
[347801647,1736116239069,-500.0,0.00010715,2]
[347801648,1736116239079,-500.0,0.00010715,2]
[347801649,1736116239088,-500.0,0.00010715,2]
[347801650,1736116239097,-1000.0,0.00010715,2]
[347801651,1736116239107,-500.0,0.00010715,2]
[347801652,1736116239117,-423.31,0.00010715,2]
[347801653,1736116239127,-500.0,0.00010715,2]
[347801654,1736116239138,-500.0,0.00010715,2]
[347801655,1736116239147,-1318.07143007,0.00010728,2]
[347801656,1736116239157,-1318.07143007,0.00010831,2]
[347801657,1736116239166,-1000.0,0.00010861,2]
[347801658,1736116239176,-500.0,0.00010897,2]
[347801659,1736116239185,-516.77,0.00010897,2]
[347801660,1736116239195,-1318.07143007,0.00010934,2]
[347801661,1736116239206,-150.0,0.00010959,2]
[347801662,1736116239215,-9814.03,0.00010959,2]
[347801663,1736116239225,-400.0,0.00010986,2]
[347801664,1736116239235,-500.0,0.00010988,2]
[347801665,1736116239245,-500.0,0.00010988,2]
[347801666,1736116239254,-500.0,0.00010988,2]
[347801667,1736116239264,-661.78,0.00010989,2]
[347801668,1736116239273,-500.0,0.00010989,2]
[347801669,1736116239283,-500.0,0.00010989,2]
[347801670,1736116239292,-561.96,0.00010989,2]
[347801671,1736116239302,-1535.44,0.00010989,2]
[347801672,1736116239312,-805.54,0.00010989,2]
[347801673,1736116239322,-500.0,0.00010989,2]
[347801674,1736116239331,-500.0,0.00010989,2]
[347801675,1736116239341,-500.0,0.00010989,2]
[347801676,1736116239351,-393.11,0.00010989,2]
[347801677,1736116239360,-500.0,0.00010989,2]
[347801678,1736116239369,-500.0,0.00010989,2]
[347801679,1736116239379,-255.0,0.00010999,2]
[347801680,1736116239388,-1318.07143007,0.00011038,2]
[347801681,1736116239399,-1318.07143007,0.00011141,2]
[347801682,1736116239409,-500.0,0.00011171,2]
[347801683,1736116239419,-516.77,0.00011171,2]
[347801684,1736116239429,-1318.07143007,0.00011245,2]
[347801685,1736116239439,-429.58022011,0.00011252,2]
[347801686,1736116239449,-500.0,0.00011262,2]
[347801687,1736116239459,-500.0,0.00011262,2]
[347801688,1736116239468,-500.0,0.00011262,2]
[347801689,1736116239478,-661.78,0.00011263,2]
[347801690,1736116239488,-500.0,0.00011263,2]
[347801691,1736116239498,-500.0,0.00011263,2]
[347801692,1736116239509,-561.96,0.00011263,2]
[347801693,1736116239518,-1535.44,0.00011263,2]
[347801694,1736116239528,-805.54,0.00011263,2]
[347801695,1736116239537,-500.0,0.00011263,2]
[347801696,1736116239547,-500.0,0.00011263,2]
[347801697,1736116239557,-500.0,0.00011263,2]
[347801698,1736116239567,-500.0,0.00011263,2]
[347801699,1736116239577,-500.0,0.00011263,2]
[347801700,1736116239587,-700.0,0.00011264,2]
[347801701,1736116239598,-500.0,0.00011264,2]
[347801702,1736116239609,-500.0,0.00011264,2]
[347801703,1736116239619,-1318.07143007,0.00011348,2]
[347801704,1736116239629,-574.58,0.00011366,2]
[347801705,1736116239638,-500.0,0.00011366,2]
[347801706,1736116239648,-500.0,0.00011366,2]
[347801707,1736116239657,-500.0,0.00011366,2]
[347801708,1736116239668,-500.0,0.00011366,2]
[347801709,1736116239678,-500.0,0.00011366,2]
[347801711,1736116239688,-500.0,0.00011366,2]
[347801712,1736116239698,-500.0,0.00011366,2]
[347801713,1736116239708,-500.0,0.00011366,2]
[347801714,1736116239717,-500.0,0.00011366,2]
[347801715,1736116239727,-500.0,0.00011366,2]
[347801716,1736116239738,-500.0,0.00011366,2]
[347801717,1736116239748,-610.55,0.00011366,2]
[347801718,1736116239757,-506.92,0.00011366,2]
[347801719,1736116239767,-537.83,0.00011366,2]
[347801720,1736116239777,-500.0,0.00011366,2]
[347801721,1736116239787,-500.0,0.00011366,2]
[347801722,1736116239796,-509.6,0.00011366,2]
[347801723,1736116239806,-500.0,0.00011366,2]
[347801724,1736116239816,-500.0,0.00011366,2]
[347801725,1736116239826,-500.0,0.00011366,2]
[347801726,1736116239835,-500.0,0.00011366,2]
[347801727,1736116239845,-500.0,0.00011366,2]
[347801728,1736116239855,-500.0,0.00011366,2]
[347801729,1736116239864,-578.4,0.00011366,2]
[347801730,1736116239874,-500.0,0.00011366,2]
[347801731,1736116239884,-500.0,0.00011366,2]
[347801732,1736116239898,-500.0,0.00011366,2]
[347801733,1736116239907,-500.0,0.00011366,2]
[347801734,1736116239916,-500.0,0.00011366,2]
[347801735,1736116239925,-500.0,0.00011366,2]
[347801736,1736116239935,-601.95,0.00011366,2]
[347801737,1736116239944,-500.0,0.00011366,2]
[347801738,1736116239953,-500.0,0.00011366,2]
[347801739,1736116239962,-500.0,0.00011366,2]
[347801740,1736116239971,-560.96,0.00011366,2]
[347801741,1736116239981,-500.0,0.00011366,2]
[347801742,1736116239990,-500.0,0.00011366,2]
[347801743,1736116239999,-500.0,0.00011366,2]
[347801744,1736116240008,-500.0,0.00011366,2]
[347801745,1736116240018,-647.87,0.00011366,2]
[347801746,1736116240029,-500.0,0.00011366,2]
[347801747,1736116240038,-501.83,0.00011366,2]
[347801748,1736116240048,-500.0,0.00011366,2]
[347801749,1736116240058,-500.0,0.00011366,2]